bitfinex/quotes_ETHUSD_20240602
["timestamp","ask_amount","ask_price","bid_price","bid_amount"]
[1717342338490,0.06067642,3796.4,3795.7,2.9508]
[1717342341310,2.63415,3796.3,3795.5,2.63463]
[1717342341599,5.12914381,3796.3,3795.8,0.554]
[1717342342058,5.12914381,3796.3,3795.6,0.554]
[1717342342259,5.12914381,3796.3,3795.2,2.63489]
[1717342342260,5.68314381,3796.3,3795.2,2.63489]
[1717342342600,5.68314381,3796.3,3795.4,0.554]
[1717342342754,2.63434,3796.1,3795.4,0.554]
[1717342343397,0.06035386,3796.0,3795.4,0.554]
[1717342343899,0.06035386,3796.0,3795.2,2.63489]
[1717342344072,2.4344,3795.9,3795.5,0.554]
[1717342344274,2.4344,3795.9,3794.7,0.28480575]
[1717342344275,5.58178939,3795.9,3794.8,2.63513]
[1717342344516,5.06888,3795.9,3795.2,0.554]
[1717342344803,2.63457,3795.7,3795.2,0.554]
[1717342345157,2.63457,3795.7,3795.4,0.554]
[1717342345158,0.06022795,3795.6,3795.4,0.554]
[1717342349797,2.63457,3795.7,3795.4,0.554]
[1717342351307,2.4344,3795.9,3795.4,0.554]
[1717342351482,0.06014532,3795.6,3795.4,0.554]
[1717342351872,0.06014532,3795.5,3795.4,0.554]
[1717342352203,2.4344,3795.9,3795.4,0.554]
[1717342352502,0.06014532,3795.5,3795.4,0.554]
[1717342352703,2.4344,3795.9,3795.4,0.554]
[1717342352944,0.06014532,3795.5,3795.4,0.554]
[1717342353143,2.4344,3795.9,3795.4,0.554]
[1717342353306,0.06014532,3795.5,3795.4,0.554]
[1717342353507,2.4344,3795.9,3795.4,0.554]
[1717342353743,0.06014532,3795.8,3795.4,0.554]
[1717342358059,0.06014532,3795.8,3795.3,0.554]
[1717342363687,0.06014532,3795.8,3795.2,0.554]
[1717342368779,0.06014532,3795.8,3795.0,2.63498]
[1717342369182,0.06014532,3795.8,3795.1,0.554]
[1717342369395,0.62843485,3795.8,3795.1,0.554]
[1717342369764,3.26298485,3795.8,3795.1,0.554]
[1717342371351,2.277,3795.7,3795.1,0.554]
[1717342371778,0.06013353,3795.6,3795.1,0.554]
[1717342373528,0.06013353,3795.6,3794.9,0.554]
[1717342375449,0.06013353,3795.6,3794.7,2.63525]
[1717342375601,0.06013353,3795.6,3794.9,0.554]
[1717342376592,0.06013353,3795.6,3794.7,2.63525]
[1717342376793,0.06013353,3795.6,3794.9,0.554]
[1717342376979,0.06013353,3795.6,3794.7,2.63525]
[1717342377179,0.06013353,3795.6,3794.9,0.554]
[1717342377415,3.30422084,3795.6,3794.7,2.63525]
[1717342377576,2.277,3795.5,3794.8,0.554]
[1717342377780,2.33688562,3795.5,3794.8,0.554]
[1717342382043,2.63477,3795.4,3794.7,2.63525]
[1717342382216,2.277,3795.3,3794.5,0.554]
[1717342382543,2.63494,3795.2,3794.3,5.56456]
[1717342382836,2.63505,3795.0,3794.3,2.63546]
[1717342383004,2.63505,3795.0,3794.3,3.18946]
[1717342383212,0.05983839,3794.9,3794.3,3.18946]
[1717342383795,0.05983839,3794.9,3794.0,2.3751]
[1717342384097,0.05983839,3794.9,3794.1,2.63564]
[1717342384302,0.05983839,3794.9,3794.2,0.554]
[1717342386724,2.3121,3794.8,3794.2,0.554]
[1717342387132,0.05968489,3794.7,3794.2,0.554]
[1717342387331,0.05968489,3794.7,3794.3,0.554]
[1717342387509,0.05968489,3794.7,3794.1,2.63564]
[1717342387709,0.05968489,3794.7,3794.3,0.554]
[1717342388027,2.3121,3794.8,3794.3,0.554]
[1717342388228,0.05968489,3794.6,3794.3,0.554]
[1717342388531,2.3121,3794.8,3794.3,0.554]
[1717342389643,0.05968489,3794.7,3794.3,0.554]
[1717342389936,2.3121,3794.8,3794.3,0.554]
[1717342390128,0.05968489,3794.6,3794.1,2.63564]
[1717342390331,4.94734,3794.8,3794.1,2.63564]
[1717342390527,4.94734,3794.8,3793.9,0.554]
[1717342390528,0.494734,3794.7,3793.9,0.554]
[1717342390835,0.05968489,3794.6,3793.9,0.554]
[1717342392013,4.94734,3794.8,3793.9,0.554]
[1717342392217,0.05966913,3794.5,3793.9,0.554]
[1717342392411,4.94734,3794.8,3793.9,0.554]
[1717342392644,0.05966913,3794.4,3793.9,0.554]
[1717342392830,4.94734,3794.8,3794.1,0.554]
[1717342393031,0.05966913,3794.3,3794.1,0.554]
[1717342393218,4.94734,3794.8,3794.1,0.554]
[1717342393419,0.05966913,3794.2,3793.9,0.554]
[1717342393642,2.3121,3794.5,3793.8,2.63586]
[1717342393805,0.05966913,3794.1,3793.5,2.63607]
[1717342394147,2.3121,3794.5,3793.8,0.554]
[1717342394645,0.0593936,3794.4,3793.8,0.554]
[1717342397630,0.0593936,3794.4,3793.5,2.63607]
[1717342397838,0.0593936,3794.4,3793.9,0.554]
[1717342398127,0.05926762,3794.3,3793.9,0.554]
[1717342398523,2.3121,3794.5,3793.9,0.554]
[1717342399059,0.05927548,3794.4,3793.9,0.554]
[1717342401831,0.05927548,3794.4,3793.5,2.63607]
[1717342402033,0.05927548,3794.4,3793.9,0.554]
[1717342402669,2.3121,3794.5,3793.9,0.554]
[1717342402847,0.05931485,3794.3,3793.9,0.554]
[1717342403022,2.3121,3794.5,3793.9,0.554]
[1717342403224,0.05931485,3794.2,3793.9,0.554]
[1717342403421,2.3121,3794.5,3793.9,0.554]
[1717342403833,0.05931485,3794.4,3793.9,0.554]
[1717342410084,0.05931485,3794.4,3793.7,2.63588]
[1717342410269,0.05931485,3794.4,3794.0,0.554]
[1717342415654,0.05931485,3794.4,3794.2,0.554]
[1717342415933,2.3843,3794.8,3794.2,0.554]
[1717342416451,0.05934242,3794.7,3794.4,0.554]
[1717342416686,2.3843,3794.8,3794.4,0.554]
[1717342416841,0.05934242,3794.6,3794.4,0.554]
[1717342417041,2.3843,3794.8,3794.4,0.554]
[1717342417261,0.05934242,3794.5,3794.4,0.554]
[1717342417460,2.3843,3794.8,3794.4,0.554]
[1717342417665,0.05934242,3794.5,3794.4,0.554]
[1717342417868,2.3843,3794.8,3794.4,0.554]
[1717342418055,0.05934242,3794.5,3794.4,0.554]
[1717342418552,2.3843,3794.8,3794.4,0.554]
[1717342418757,0.05934242,3794.7,3794.4,0.554]
[1717342418983,2.3843,3794.8,3794.4,0.554]
[1717342419278,0.05943295,3794.7,3794.4,0.554]
[1717342419472,2.3843,3794.8,3794.4,0.554]
[1717342419978,2.69475295,3794.7,3793.9,2.63575]
[1717342420186,2.93318295,3794.7,3793.9,2.63575]
[1717342420340,2.3843,3794.6,3793.9,2.63575]
[1717342420769,0.05943295,3794.5,3794.0,0.554]
[1717342421504,0.05943295,3794.5,3793.9,2.63575]
[1717342421806,0.05943295,3794.5,3793.9,3.18975]
[1717342423672,2.3843,3794.4,3793.5,2.63605]
[1717342423886,5.01977,3794.4,3793.5,2.63605]
[1717342424085,0.05931878,3794.3,3793.9,0.554]
[1717342429113,0.05931878,3794.3,3794.1,0.554]
[1717342429467,2.63526,3794.7,3794.1,0.554]
[1717342429816,3.127246,3794.7,3794.1,0.554]
[1717342429971,0.05929912,3794.6,3794.1,0.554]
[1717342430171,0.05929912,3794.6,3793.8,2.4267]
[1717342430387,0.05929912,3794.6,3794.1,0.554]
[1717342430791,2.2846,3794.5,3794.1,0.554]
[1717342431172,0.05933062,3794.4,3794.1,0.554]
[1717342432009,2.2846,3794.3,3793.9,0.554]
[1717342432387,0.05933062,3794.2,3793.9,0.554]
[1717342432708,2.2846,3794.3,3793.9,0.554]
[1717342432910,0.05933062,3794.1,3793.9,0.554]
[1717342433086,2.2846,3794.3,3793.9,0.554]
[1717342433290,0.05933062,3794.0,3793.7,2.63588]
[1717342433491,2.2846,3794.3,3793.9,0.554]
[1717342436287,2.2846,3794.3,3793.7,2.63588]
[1717342436694,2.2846,3794.3,3793.7,3.18988]
[1717342436919,2.63547,3794.4,3793.9,0.554]
[1717342438314,0.05931091,3794.3,3793.9,0.554]
[1717342442015,2.2846,3794.2,3793.9,0.554]
[1717342442407,0.05931091,3794.1,3793.9,0.554]
[1717342444418,0.05931091,3794.1,3793.9,2.9807]
[1717342444774,4.91986,3794.7,3793.9,2.9807]
[1717342444971,0.05926761,3794.6,3794.1,0.554]
[1717342446211,0.05926761,3794.6,3794.5,0.554]
[1717342446617,2.3118,3795.3,3794.5,0.554]
[1717342446839,0.05940934,3795.2,3794.9,0.554]
[1717342447250,2.63475,3795.5,3794.9,0.554]
[1717342447724,0.05941722,3795.4,3794.9,0.554]
[1717342455535,0.05941722,3795.4,3794.6,5.0409]
[1717342455711,0.05941722,3795.4,3794.9,0.554]
[1717342459860,0.05941722,3795.4,3794.6,5.0409]
[1717342460029,0.56001394,3795.4,3794.8,0.554]
[1717342461331,2.63484,3795.3,3794.8,0.554]
[1717342461656,0.05996039,3795.2,3794.8,0.554]
[1717342461958,2.63484,3795.3,3794.8,0.554]
[1717342462174,0.05996039,3795.1,3794.8,0.554]
[1717342462515,2.63484,3795.3,3794.8,0.554]
[1717342462719,0.05996039,3795.0,3794.8,0.554]
[1717342462947,2.63484,3795.3,3794.8,0.554]
[1717342463451,0.05996039,3795.2,3794.8,0.554]
[1717342463653,2.3118,3796.4,3795.1,0.554]
[1717342463966,2.3118,3796.4,3794.9,5.0407]
[1717342463967,3.0,3796.3,3795.5,0.554]
[1717342464115,2.6344,3796.0,3795.5,0.554]
[1717342464516,2.6344,3796.0,3795.5,2.9596]
[1717342468269,0.05983051,3795.9,3795.5,2.9596]
[1717342468920,2.63414,3796.3,3795.5,2.9596]
[1717342469260,0.794594,3796.2,3795.5,2.9596]
[1717342469560,0.85464488,3796.2,3795.5,2.9596]
[1717342471363,0.85464488,3796.2,3795.5,2.4056]
[1717342471667,0.85464488,3796.2,3795.5,2.9596]
[1717342473327,2.63431,3796.1,3795.2,2.333]
[1717342473542,3.56978549,3796.1,3795.4,0.554]
[1717342473773,0.06005088,3796.0,3795.4,0.554]
[1717342475266,0.06005088,3796.0,3795.2,2.887]
[1717342475875,0.06005088,3796.0,3795.1,2.63491]
[1717342476077,2.82278364,3795.9,3795.2,0.554]
[1717342476448,0.06005088,3795.8,3795.2,0.554]
[1717342476870,2.63431,3796.1,3795.4,0.554]
[1717342477072,0.05992495,3795.7,3795.4,0.554]
[1717342477274,2.63431,3796.1,3795.4,0.554]
[1717342477468,0.05992495,3795.6,3795.4,0.554]
[1717342477674,2.63431,3796.1,3795.4,0.554]
[1717342477875,0.05992495,3795.5,3795.4,0.554]
[1717342478049,2.63431,3796.1,3795.4,0.554]
[1717342478389,0.05992495,3795.5,3795.4,0.554]
[1717342478545,2.63431,3796.1,3795.4,0.554]
[1717342478746,0.06000365,3795.5,3795.4,0.554]
[1717342478947,2.63431,3796.1,3795.4,0.554]
[1717342479148,0.06000365,3795.5,3795.4,0.554]
[1717342479348,2.63431,3796.1,3795.4,0.554]
[1717342479588,0.06000365,3795.5,3795.4,0.554]
[1717342480062,2.63431,3796.1,3795.4,0.554]
[1717342480247,0.06000365,3795.5,3795.4,0.554]
[1717342480448,2.63431,3796.1,3795.4,2.887]
[1717342480670,2.63431,3796.1,3795.6,0.554]
[1717342482442,5.63408,3796.4,3795.6,0.554]
[1717342482690,5.63408,3796.4,3796.1,0.554]
[1717342482691,2.63408,3796.4,3796.1,0.554]
[1717342483267,0.060346,3796.3,3796.1,0.554]
[1717342484765,0.060346,3796.3,3796.2,2.333]
[1717342485194,2.63387,3796.7,3796.2,2.333]
[1717342485392,0.0604168,3796.3,3796.2,2.333]
[1717342485553,2.63387,3796.7,3796.2,2.333]
[1717342485753,0.0604168,3796.3,3796.2,2.887]
[1717342485967,2.63387,3796.7,3796.2,2.887]
[1717342486468,0.06054268,3796.6,3796.2,2.887]
[1717342489587,2.63365,3797.1,3796.5,0.554]
[1717342498386,0.06072361,3797.0,3796.5,0.554]
[1717342498570,0.06072361,3797.0,3796.2,2.63415]
[1717342498771,0.06072361,3797.0,3796.4,0.554]
[1717342499620,0.06072361,3797.0,3796.4,2.9049]
[1717342502109,0.06072361,3797.0,3796.6,0.554]
[1717342502522,0.06072361,3797.0,3796.4,2.634]
[1717342502673,0.06072361,3797.0,3796.9,2.9049]
[1717342502882,7.32,3798.0,3796.9,2.9049]
[1717342502883,2.63316,3797.8,3796.9,2.9049]
[1717342503203,0.06088488,3797.0,3796.9,2.3509]
[1717342503406,2.63316,3797.8,3796.9,2.9049]
[1717342503633,2.63316,3797.8,3796.9,2.3509]
[1717342503842,2.63329,3797.6,3797.0,0.554]
[1717342504355,0.06093598,3797.5,3797.0,0.554]
[1717342510456,0.06093598,3797.5,3797.2,0.554]
[1717342513237,0.06093598,3797.5,3796.8,2.63373]
[1717342513425,0.06093598,3797.5,3796.8,3.18773]
[1717342514458,0.06093598,3797.5,3796.8,2.63373]
[1717342514660,2.63338,3797.4,3796.8,3.18773]
[1717342514955,0.06150221,3797.3,3796.8,3.18773]
[1717342516051,0.06150221,3797.3,3797.2,2.8722]
[1717342516412,2.63316,3797.8,3797.2,2.8722]
[1717342516614,0.06148648,3797.3,3797.2,2.8722]
[1717342516814,2.63316,3797.8,3797.2,2.8722]
[1717342517033,0.06148648,3797.3,3797.2,2.8722]
[1717342517232,2.63316,3797.8,3797.2,2.8722]
[1717342517775,0.06154938,3797.7,3797.2,2.8722]
[1717342520248,0.06154938,3797.7,3797.4,0.554]
[1717342520564,2.63316,3797.8,3797.4,0.554]
[1717342520756,0.06163978,3797.6,3797.4,0.554]
[1717342520912,2.63316,3797.8,3797.4,0.554]
[1717342521114,0.06163978,3797.5,3797.4,0.554]
[1717342521313,2.63316,3797.8,3797.4,0.554]
[1717342521513,0.06163978,3797.5,3797.4,0.554]
[1717342521752,2.63316,3797.8,3797.4,0.554]
[1717342522260,0.06165945,3797.7,3797.4,0.554]
[1717342522622,2.63316,3797.8,3797.4,0.554]
[1717342522821,0.06165945,3797.6,3797.4,0.554]
[1717342523039,2.63316,3797.8,3797.4,0.554]
[1717342523237,0.06165945,3797.5,3797.4,0.554]
[1717342523570,0.06165945,3797.5,3797.2,2.8722]
[1717342523865,2.63316,3797.8,3797.2,2.8722]
[1717342524014,0.06165945,3797.4,3797.2,2.8722]
[1717342524220,2.63316,3797.8,3797.2,2.8722]
[1717342524446,0.06171445,3797.3,3797.2,2.3182]
[1717342524646,2.63316,3797.8,3797.2,2.8722]
[1717342525044,0.06171445,3797.7,3797.2,2.8722]
[1717342525569,0.06171445,3797.7,3797.2,2.3182]
[1717342525773,0.3312019,3797.7,3797.1,2.63358]
[1717342525987,0.3312019,3797.7,3796.7,2.63382]
[1717342525988,0.06171445,3797.7,3796.7,2.63382]
[1717342526126,0.06171445,3797.7,3796.8,0.554]
[1717342526127,2.4501,3797.6,3796.8,0.554]
[1717342526465,0.06184026,3797.5,3796.8,0.554]
[1717342526925,2.63343,3797.4,3796.4,2.3462]
[1717342527126,0.06168303,3797.3,3796.8,0.554]
[1717342527472,0.06168303,3797.3,3797.0,0.554]
[1717342531047,5.08324,3797.8,3797.0,0.554]
[1717342531355,0.06149434,3797.2,3797.0,0.554]
[1717342531563,5.08324,3797.8,3797.0,0.554]
[1717342532147,0.06149434,3797.7,3797.0,0.554]
[1717342533859,2.63325,3797.6,3796.9,2.3462]
[1717342534058,2.63325,3797.6,3796.9,0.554]
[1717342534450,0.06149434,3797.5,3796.9,0.554]
[1717342534789,0.06149434,3797.5,3797.0,0.554]
[1717342535081,2.63317,3797.7,3797.0,0.554]
[1717342535278,0.061514,3797.4,3797.0,0.554]
[1717342535491,2.63317,3797.7,3797.0,0.554]
[1717342535640,0.061514,3797.3,3797.0,0.554]
[1717342535843,2.63317,3797.7,3797.0,0.554]
[1717342536068,0.061514,3797.2,3797.0,0.554]
[1717342536264,2.63317,3797.7,3797.0,0.554]
[1717342536466,0.061514,3797.1,3797.0,0.554]
[1717342536670,2.63317,3797.7,3797.0,0.554]
[1717342536868,0.061514,3797.1,3797.0,0.554]
[1717342537084,2.63317,3797.7,3797.0,0.554]
[1717342537280,0.061514,3797.1,3797.0,0.554]
[1717342537985,5.08477,3797.7,3797.0,0.554]
[1717342538287,0.061514,3797.6,3797.0,0.554]
[1717342539665,2.63331,3797.5,3797.0,0.554]
[1717342540285,0.061514,3797.4,3797.0,0.554]
[1717342546555,2.63331,3797.5,3797.0,0.554]
[1717342546754,0.06155725,3797.4,3797.0,0.554]
[1717342551152,0.06155725,3797.4,3797.2,0.554]
[1717342551356,0.06155725,3797.4,3797.0,0.554]
[1717342552660,0.06155725,3797.4,3797.2,0.554]
[1717342553158,2.63304,3797.9,3797.2,0.554]
[1717342553494,0.06160441,3797.8,3797.2,0.554]
[1717342553696,0.06160441,3797.8,3797.1,2.4761]
[1717342553697,0.06160441,3797.8,3797.4,0.554]
[1717342554081,0.06160441,3797.8,3797.5,2.4761]
[1717342560020,0.06160441,3797.8,3797.4,0.554]
[1717342560736,2.63318,3797.7,3796.7,2.4761]
[1717342561029,2.63318,3797.7,3796.3,0.55128714]
[1717342561030,0.06174198,3797.6,3797.5,0.554]
[1717342561183,2.63297,3798.0,3797.5,0.554]
[1717342561382,2.63297,3798.0,3797.8,0.554]
[1717342563397,2.63276,3798.3,3797.8,0.554]
[1717342563640,2.63276,3798.3,3797.6,0.554]
[1717342565849,3.182266,3798.3,3797.4,2.4761]
[1717342566057,3.182266,3798.3,3797.4,3.0301]
[1717342566317,2.63297,3798.0,3797.4,3.0301]
[1717342568445,2.63297,3798.0,3797.4,2.4761]
[1717342569199,2.63297,3798.0,3797.4,3.0301]
[1717342569443,2.63297,3798.0,3797.6,0.554]
[1717342573362,0.06169088,3797.9,3797.6,0.554]
[1717342573761,0.06169088,3797.9,3797.4,2.4761]
[1717342573972,0.06169088,3797.9,3797.4,3.0301]
[1717342574175,0.06169088,3797.9,3797.6,0.554]
[1717342574460,0.06169088,3797.9,3797.4,2.4761]
[1717342574461,0.06169088,3797.9,3797.4,3.0301]
[1717342588713,0.06169088,3797.9,3797.2,2.63346]
[1717342589018,0.06169088,3797.9,3797.5,2.4128]
[1717342594027,0.06179703,3797.8,3797.5,2.4128]
[1717342594199,2.63276,3798.3,3797.5,2.4128]
[1717342594405,0.06179703,3798.2,3797.5,2.4128]
[1717342600208,0.4964357,3798.1,3797.4,2.63333]
[1717342600439,2.4092,3798.0,3797.4,2.63333]
[1717342600769,2.47114636,3798.0,3797.4,2.63333]
[1717342603140,0.06194636,3798.0,3797.4,2.63333]
[1717342605321,0.06194636,3798.0,3797.4,3.18733]
[1717342608841,0.06194636,3798.0,3797.4,2.63333]
[1717342609039,0.06194636,3798.0,3797.5,0.554]
[1717342611134,0.06194636,3798.0,3797.4,2.63333]
[1717342614237,2.3522,3797.9,3797.4,2.63333]
[1717342614531,2.41408739,3797.9,3797.4,2.63333]
[1717342618639,2.41408739,3797.9,3797.1,3.18756]
[1717342618968,5.04716739,3797.9,3797.1,3.18756]
[1717342623486,5.04716739,3797.9,3797.1,2.63356]
[1717342623683,2.63322,3797.7,3796.8,5.10068]
[1717342623983,2.3522,3797.6,3796.8,3.18778]
[1717342624185,2.4139302,3797.6,3796.8,3.18778]
[1717342626007,2.9679302,3797.6,3796.7,0.554]
[1717342626181,3.26533489,3797.6,3796.7,0.554]
[1717342626688,2.71133489,3797.6,3796.7,0.554]
[1717342627391,2.63353,3797.2,3796.7,0.554]
[1717342627762,0.06136069,3797.1,3796.7,0.554]
[1717342629498,0.06136069,3797.1,3796.5,2.63393]
[1717342629788,0.06136069,3797.1,3796.7,0.554]
[1717342631083,0.06136069,3797.1,3796.5,2.63393]
[1717342631589,0.06136069,3797.1,3796.7,0.554]
[1717342641504,0.06136069,3797.1,3796.5,2.63393]
[1717342641707,0.06136069,3797.1,3796.6,0.554]
[1717342647713,0.06136069,3797.1,3797.0,0.554]
[1717342647930,2.63311,3797.8,3797.0,0.554]
[1717342648079,0.06129777,3797.1,3797.0,0.554]
[1717342648429,2.63311,3797.8,3797.1,2.63354]
[1717342648572,2.63311,3797.8,3797.3,0.554]
[1717342648778,0.0613528,3797.7,3797.3,0.554]
[1717342649191,2.63311,3797.8,3797.3,0.554]
[1717342649403,0.0613528,3797.6,3797.3,0.554]
[1717342649601,2.63311,3797.8,3797.1,3.18754]
[1717342649811,0.0613528,3797.5,3797.1,3.18754]
[1717342650011,2.63311,3797.8,3797.1,3.18754]
[1717342650186,0.0613528,3797.7,3797.1,3.18754]
[1717342655936,2.2932,3798.0,3797.3,0.554]
[1717342656433,0.0614904,3797.9,3797.3,0.554]
[1717342659851,0.0614904,3797.9,3797.4,2.2762]
[1717342660229,3.18689,3798.2,3797.4,2.2762]
[1717342660555,0.06150217,3798.1,3797.4,2.2762]
[1717342664352,0.06150217,3798.1,3797.5,0.554]
[1717342668169,0.06150217,3798.1,3797.4,2.2762]
[1717342692120,2.6333,3797.6,3796.9,2.63371]
[1717342692327,2.6333,3797.6,3796.4,0.28466775]
[1717342692328,2.70933,3797.5,3796.6,3.18791]
[1717342692527,2.4521179,3797.5,3796.6,3.18791]
[1717342693094,2.4521179,3797.5,3796.6,2.63391]
[1717342693297,2.63344,3797.4,3796.7,0.554]
[1717342693501,2.63344,3797.4,3796.9,0.554]
[1717342693826,0.06118375,3797.3,3796.8,2.4209]
[1717342697320,0.06118375,3797.3,3796.7,0.554]
[1717342706635,0.06118375,3797.3,3796.9,0.554]
[1717342712726,2.63318,3797.7,3797.1,0.554]
[1717342713233,2.2697,3797.5,3796.6,2.63391]
[1717342713437,0.496428,3797.4,3796.7,0.554]
[1717342713862,0.06139997,3797.3,3796.7,0.554]
[1717342723124,4.90306,3797.5,3796.7,0.554]
[1717342723562,0.06131348,3797.4,3796.7,0.554]
[1717342726037,0.06131348,3797.4,3796.8,2.63377]
[1717342729478,0.49643735,3797.3,3796.8,2.63377]
[1717342729661,0.06131348,3797.4,3796.8,2.63377]
[1717342729837,0.06145502,3797.2,3796.8,2.63377]
[1717342730037,0.06143143,3797.3,3796.8,2.63377]
[1717342730366,0.06143143,3797.2,3796.8,2.63377]
[1717342730567,0.47914933,3797.4,3796.8,2.63377]
[1717342730780,0.06143143,3797.3,3796.8,2.63377]
[1717342731277,4.90306,3797.5,3796.8,2.63377]
[1717342731451,0.06140784,3797.2,3796.8,2.63377]
[1717342731650,2.4123,3797.1,3796.8,2.63377]
[1717342731852,2.47370784,3797.1,3796.8,2.63377]
[1717342733256,0.06140784,3797.1,3796.5,2.63398]
[1717342733604,5.04582,3797.2,3796.5,2.63398]
[1717342733973,0.06140784,3797.1,3796.5,2.63398]
[1717342735240,0.06140784,3797.1,3797.0,0.554]
[1717342735480,2.4123,3797.8,3797.0,0.554]
[1717342735881,0.06117194,3797.7,3797.0,0.554]
[1717342738254,0.06117194,3797.7,3797.0,0.539]
[1717342747455,3.56044613,3797.7,3797.0,0.539]
[1717342752427,3.56044613,3797.7,3797.0,3.0062]
[1717342753099,3.56044613,3797.7,3797.0,2.4672]
[1717342758812,3.56044613,3797.7,3796.9,2.63366]
[1717342765334,2.63335,3797.5,3796.8,0.554]
[1717342765742,0.06146289,3797.4,3796.8,0.554]
[1717342777781,2.7357496,3797.4,3796.8,0.554]
[1717342783445,2.7357496,3797.4,3796.6,2.63391]
[1717342783781,2.7357496,3797.4,3796.7,0.554]
[1717342784280,2.63349,3797.3,3796.7,0.554]
[1717342784487,0.06141572,3797.2,3796.7,0.554]
[1717342791336,2.3669,3797.1,3796.6,2.63391]
[1717342791493,2.3669,3797.1,3796.6,3.18791]
[1717342791695,0.06139605,3797.0,3796.6,3.18791]
[1717342792733,0.06139605,3797.0,3796.6,2.63391]
[1717342792940,2.3669,3796.9,3795.9,0.83786068]
[1717342793238,5.00064,3796.9,3796.0,3.18832]
[1717342793400,0.06129383,3796.8,3796.0,3.18832]
[1717342794015,0.06129383,3796.8,3796.0,2.63432]
[1717342794235,0.06129383,3796.8,3796.1,0.554]
[1717342794406,0.62288721,3796.8,3796.0,2.63432]
[1717342794606,0.62288721,3796.8,3796.1,0.554]
[1717342795019,0.62288721,3796.8,3796.0,2.63432]
[1717342795337,0.62288721,3796.8,3796.2,0.554]
[1717342802140,0.06129383,3796.8,3796.2,0.554]
[1717342802312,0.06129383,3796.8,3796.7,0.554]
[1717342802713,2.63351,3797.3,3796.7,0.554]
[1717342803038,2.4825,3797.6,3797.1,0.554]
[1717342803239,0.06083375,3797.2,3797.1,0.554]
[1717342804136,2.4825,3797.6,3797.1,0.554]
[1717342804336,0.06106968,3797.2,3797.1,0.554]
[1717342804538,0.511573,3797.5,3797.1,0.554]
[1717342804736,0.06106968,3797.2,3796.9,0.554]
[1717342804937,0.511573,3797.5,3796.9,0.554]
[1717342805133,0.06106968,3797.1,3796.9,0.554]
[1717342805348,2.4825,3797.6,3796.9,3.18771]
[1717342805552,0.06106968,3797.0,3796.9,3.18771]
[1717342805839,0.06116798,3797.0,3796.9,3.18771]
[1717342806040,2.4825,3797.6,3796.9,3.18771]
[1717342806784,0.06152972,3797.5,3796.9,3.18771]
[1717342807337,0.06152972,3797.5,3796.9,2.63371]
[1717342807579,2.4943,3797.4,3796.9,2.63371]
[1717342807987,0.06150614,3797.3,3796.9,2.63371]
[1717342817200,0.06150614,3797.3,3796.5,2.63394]
[1717342817490,0.06150614,3797.3,3796.6,0.554]
[1717342830176,0.06150614,3797.3,3796.8,0.554]
[1717342839325,0.58041675,3797.3,3796.8,0.554]
[1717342841723,0.58041675,3797.3,3796.7,2.63386]
[1717342847101,0.06150614,3797.3,3796.7,2.63386]
[1717342848939,0.06150614,3797.3,3796.8,0.554]
[1717342856450,0.06150614,3797.3,3796.9,2.63369]
[1717342856824,2.6333,3797.6,3796.9,2.63369]
[1717342857149,0.06147861,3797.2,3796.9,2.63369]
[1717342857355,2.6333,3797.6,3796.9,2.63369]
[1717342857955,0.06147861,3797.5,3796.9,2.63369]
[1717342859327,2.39537861,3797.5,3796.9,2.63369]
[1717342865291,2.95364647,3797.5,3796.9,2.63369]
[1717342879381,2.2858,3797.0,3796.0,0.83784851]
[1717342879539,2.2858,3797.0,3795.9,2.8331]
[1717342879540,0.61543537,3796.9,3795.9,2.8331]
[1717342879871,2.63381,3796.8,3795.9,2.8331]
[1717342880284,0.0613764,3796.7,3796.1,0.554]
[1717342881072,0.0613764,3796.7,3795.9,2.2791]
[1717342881249,0.0613764,3796.7,3796.2,0.554]
[1717342892932,0.0613764,3796.7,3795.9,2.2791]
[1717342893125,0.0613764,3796.7,3796.1,0.554]
[1717342895044,0.0613764,3796.7,3795.9,2.2791]
[1717342895355,0.0613764,3796.7,3796.0,0.554]
[1717342898245,2.3482764,3796.7,3796.0,0.554]
[1717342899985,2.3482764,3796.7,3795.9,2.8331]
[1717342904797,2.3482764,3796.7,3795.9,0.554]
[1717342910117,2.3482764,3796.7,3796.0,2.63435]
[1717342915517,0.0613764,3796.7,3796.0,2.63435]
[1717342915726,0.0613764,3796.7,3796.6,0.554]
[1717342915895,2.39,3797.2,3796.6,1.104]
[1717342916323,0.06078655,3797.1,3796.6,0.55]
[1717342916492,0.06078655,3797.1,3796.6,0.554]
[1717342916693,0.06078655,3797.1,3796.5,0.55]
[1717342917260,0.06078655,3797.1,3796.5,1.104]
[1717342917917,3.22916361,3797.1,3796.4,2.63406]
[1717342918117,3.22916361,3797.1,3796.4,3.18806]
[1717342920256,2.39,3797.0,3796.0,2.63428]
[1717342920474,2.63372,3796.9,3796.0,2.63428]
[1717342920766,2.76832636,3796.8,3796.0,2.63428]
[1717342921143,0.0609832,3796.7,3796.0,2.63428]
[1717342922066,0.0609832,3796.7,3796.0,3.18828]
[1717342922864,0.0609832,3796.7,3796.0,2.63428]
[1717342923025,0.0609832,3796.7,3796.0,3.18828]
[1717342924261,0.0609832,3796.7,3796.0,2.63428]
[1717342924489,0.0609832,3796.7,3796.0,3.18828]
[1717342924795,0.0609832,3796.7,3796.0,2.63428]